[Event "FIDE Women World Rapid 2024"]
[Site "New York"]
[Date "2024.12.27"]
[Round "5.27"]
[White "Cervantes Landeiro, Thalia"]
[Black "Machlik, Monika"]
[Result "1/2-1/2"]
[ECO "D02"]
[WhiteElo "2307"]
[BlackElo "2107"]
[Annotator "ChessBase"]
[PlyCount "183"]
[EventDate "2024.12.14"]
[EventType "swiss"]
[EventCountry "USA"]
[SourceTitle "playchess.com"]
[Source "ChessBase"]
[SourceQuality "1"]
[TimeControl "900+10"]

1. d4 {[%emt 0:00:03]} Nf6 {[%emt 0:00:01]} 2. Nf3 {[%emt 0:00:04]} e6 {[%emt 0:00:01]} 3. Bf4 {[%emt 0:00:07]} c5 {[%emt 0:00:17]} 4. e3 {[%emt 0:00:13]} Nc6 {[%emt 0:00:12]} 5. Nbd2 {[%emt 0:00:21]} d5 {[%emt 0:01:22]} 6. c3 {[%emt 0:00:13]} Nh5 {[%emt 0:01:04]} 7. Bg5 {[%emt 0:00:44]} Qb6 {[%emt 0:00:03]} 8. Rb1 {[%emt 0:04:44]} h6 {[%emt 0:00:18]} 9. Bh4 {[%emt 0:00:03]} g5 {[%emt 0:00:21]} 10. Bg3 {[%emt 0:00:03]} Nxg3 {[%emt 0:01:01]} 11. hxg3 {[%emt 0:00:02]} Bg7 {[%emt 0:00:29]} 12. Bd3 {[%emt 0:00:05]} g4 {[%emt 0:00:35]} 13. Nh4 {[%emt 0:00:48]} h5 {[%emt 0:00:35]} 14. O-O {[%emt 0:01:47]} cxd4 {[%emt 0:01:16]} 15. exd4 {[%emt 0:00:36]} Bd7 {[%emt 0:02:16]} 16. b4 {[%emt 0:01:38]} O-O-O {[%emt 0:01:21]} 17. a4 {[%emt 0:00:05]} Kb8 {[%emt 0:01:11]} 18. Nb3 {[%emt 0:01:34]} Rc8 {[%emt 0:02:29]} 19. Nc5 {[%emt 0:00:59]} Qd8 {[%emt 0:00:02]} 20. b5 {[%emt 0:00:32]} Na5 {[%emt 0:00:40]} 21. b6 {[%emt 0:00:35]} axb6 {[%emt 0:00:19]} 22. Rxb6 {[%emt 0:00:03]} Bc6 {[%emt 0:00:36]} 23. Qb1 {[%emt 0:00:11]} Bf8 {[%emt 0:00:29]} 24. Qb4 {[%emt 0:00:55]} Bxc5 {[%emt 0:00:08]} 25. dxc5 {[%emt 0:00:02]} Nc4 {[%emt 0:00:06]} 26. Bxc4 {[%emt 0:00:49]} dxc4 {[%emt 0:00:00]} 27. Rb1 {[%emt 0:00:02]} Qe7 {[%emt 0:00:33]} 28. a5 {[%emt 0:01:04]} Rhd8 {[%emt 0:00:29]} 29. a6 {[%emt 0:00:05]} Rd7 {[%emt 0:00:47]} 30. axb7 {[%emt 0:00:37]} Rxb7 {[%emt 0:00:00]} 31. Qxc4 {[%emt 0:00:14]} Rcc7 {[%emt 0:00:00]} 32. Qa6 {[%emt 0:00:12]} Qxc5 {[%emt 0:00:32]} 33. c4 {[%emt 0:00:52]} Be4 {[%emt 0:00:07]} 34. R1b4 {[%emt 0:00:07]} Rxb6 {[%emt 0:00:39]} 35. Rxb6+ {[%emt 0:00:06]} Rb7 {[%emt 0:00:01]} 36. Rd6 {[%emt 0:00:15]} Kc7 {[%emt 0:00:02]} 37. Rd1 {[%emt 0:00:09]} Qb6 {[%emt 0:00:19]} 38. Qa3 {[%emt 0:00:12]} Qb4 {[%emt 0:00:23]} 39. Qe3 {[%emt 0:00:01]} Bc6 {[%emt 0:00:10]} 40. Qe5+ {[%emt 0:00:11]} Kb6 {[%emt 0:00:04]} 41. Qd4+ {[%emt 0:00:04]} Ka5 {[%emt 0:00:12]} 42. Ra1+ {[%emt 0:00:05]} Ba4 {[%emt 0:00:02]} 43. Qd8+ {[%emt 0:00:26]} Qb6 {[%emt 0:00:24]} 44. Qa8+ {[%emt 0:00:18]} Qa7 {[%emt 0:00:12]} 45. Qe8 {[%emt 0:00:10]} Rd7 {[%emt 0:00:09]} 46. Qf8 {[%emt 0:00:09]} Qd4 {[%emt 0:00:19]} 47. Rc1 {[%emt 0:00:12]} Qb6 {[%emt 0:00:10]} 48. Qh8 {[%emt 0:00:05]} Qd4 {[%emt 0:00:10]} 49. Qxh5+ {[%emt 0:00:02]} e5 {[%emt 0:00:03]} 50. Qh8 {[%emt 0:00:06]} Qc5 {[%emt 0:00:17]} 51. Qa8+ {[%emt 0:00:11]} Ra7 {[%emt 0:00:03]} 52. Qb8 {[%emt 0:00:02]} Qc7 {[%emt 0:00:16]} 53. Qb2 {[%emt 0:00:05]} Rb7 {[%emt 0:00:02]} 54. Qc3+ {[%emt 0:00:07]} Rb4 {[%emt 0:00:12]} 55. Rb1 {[%emt 0:00:12]} Qxc4 {[%emt 0:00:07]} 56. Qxe5+ {[%emt 0:00:03]} Rb5 {[%emt 0:00:14]} 57. Qe1+ {[%emt 0:00:17]} Ka6 {[%emt 0:00:03]} 58. Rc1 {[%emt 0:00:02]} Qd5 {[%emt 0:00:06]} 59. Ra1 {[%emt 0:00:04]} Ra5 {[%emt 0:00:06]} 60. Qb4 {[%emt 0:00:07]} Bd7 {[%emt 0:00:21]} 61. Rb1 {[%emt 0:00:18]} Rb5 {[%emt 0:00:10]} 62. Qa3+ {[%emt 0:00:17]} Kb6 {[%emt 0:00:20]} 63. Qe3+ {[%emt 0:00:08]} Qc5 {[%emt 0:00:11]} 64. Qh6+ {[%emt 0:00:30]} Qc6 {[%emt 0:00:04]} 65. Qe3+ {[%emt 0:00:15]} Qc5 {[%emt 0:00:02]} 66. Qh6+ {[%emt 0:00:02]} Qc6 {[%emt 0:00:01]} 67. Rxb5+ {[%emt 0:00:07]} Kxb5 {[%emt 0:00:02]} 68. Qh5+ {[%emt 0:00:05]} Ka6 {[%emt 0:00:36]} 69. Qxf7 {[%emt 0:00:03]} Be6 {[%emt 0:00:01]} 70. Qf6 {[%emt 0:00:09]} Qc1+ {[%emt 0:00:09]} 71. Kh2 {[%emt 0:00:01]} Qc4 {[%emt 0:00:19]} 72. Ng6 {[%emt 0:00:07]} Kb5 {[%emt 0:00:16]} 73. Nf4 {[%emt 0:00:10]} Bg8 {[%emt 0:00:08]} 74. Qg5+ {[%emt 0:00:03]} Ka4 {[%emt 0:00:03]} 75. Qxg4 {[%emt 0:00:04]} Ka3 {[%emt 0:00:06]} 76. Qf3+ {[%emt 0:00:02]} Ka4 {[%emt 0:00:12]} 77. Qd3 {[%emt 0:00:24]} Qf7 {[%emt 0:00:11]} 78. Qe4+ {[%emt 0:00:16]} Kb3 {[%emt 0:00:16]} 79. g4 {[%emt 0:00:19]} Qg7 {[%emt 0:00:08]} 80. Qf3+ {[%emt 0:00:32]} Ka2 {[%emt 0:00:12]} 81. Nh5 {[%emt 0:00:19]} Qc7+ {[%emt 0:00:06]} 82. Qg3 {[%emt 0:00:06]} Qd8 {[%emt 0:00:04]} 83. g5 {[%emt 0:00:09]} Qf8 {[%emt 0:00:18]} 84. Nf6 {[%emt 0:00:13]} Be6 {[%emt 0:00:08]} 85. Qe5 {[%emt 0:00:07]} Qh8+ {[%emt 0:00:09]} 86. Kg1 {[%emt 0:00:02]} Bb3 {[%emt 0:00:08]} 87. Qa5+ {[%emt 0:00:14]} Kb2 {[%emt 0:00:09]} 88. Qd2+ {[%emt 0:00:04]} Ka3 {[%emt 0:00:03]} 89. Qd6+ {[%emt 0:00:22]} Kb2 {[%emt 0:00:05]} 90. g6 {[%emt 0:00:11]} Qh6 {[%emt 0:00:05]} 91. Ng4 {[%emt 0:00:09]} Qh4 {[%emt 0:00:32]} 92. Qf6+ {[%emt 0:00:07]} 1/2-1/2

[Event "FIDE Women World Rapid 2024"]
[Site "New York"]
[Date "2024.12.27"]
[Round "5.28"]
[White "Naisanga Sheba Valentine"]
[Black "Berezovska, Svetlana"]
[Result "1-0"]
[ECO "E02"]
[WhiteElo "1625"]
[BlackElo "1857"]
[Annotator "NA"]
[PlyCount "121"]
[EventDate "2024.12.14"]
[EventType "swiss"]
[EventCountry "USA"]
[SourceTitle "playchess.com"]
[Source "ChessBase"]
[SourceQuality "1"]
[TimeControl "900+10"]

1. d4 {[%emt 0:00:01]} Nf6 {[%emt 0:00:05]} 2. c4 {[%emt 0:00:02]} e6 {[%emt 0:00:02]} 3. g3 {[%emt 0:00:02]} d5 {[%emt 0:00:03]} 4. Bg2 {[%emt 0:00:02]} Be7 {[%emt 0:00:06]} 5. Nf3 {[%emt 0:00:13]} dxc4 {[%emt 0:00:24]} 6. Qa4+ {[%emt 0:00:12]} Bd7 {[%emt 0:00:22]} 7. Qxc4 {[%emt 0:00:09]} Bc6 {[%emt 0:00:27]} 8. O-O {[%emt 0:00:21]} O-O {[%emt 0:00:02]} 9. Rd1 {[%emt 0:00:02]} Nbd7 {[%emt 0:00:14]} 10. Nc3 {[%emt 0:00:08]} Nb6 {[%emt 0:00:15]} 11. Qb3 {[%emt 0:00:29]} a5 {[%emt 0:00:49]} 12. Qc2 {[%emt 0:01:11]} h6 {[%emt 0:00:46]} 13. e4 {[%emt 0:00:11]} a4 {[%emt 0:00:45]} 14. Ne5 {[%emt 0:00:23]} a3 {[%emt 0:01:15]} 15. Nxc6 {[%emt 0:00:28]} bxc6 {[%emt 0:00:03]} 16. b3 {[%emt 0:00:09]} Bb4 {[%emt 0:00:44]} 17. Bf4 {[%emt 0:00:42]} Qe7 {[%emt 0:01:33]} 18. Rac1 {[%emt 0:01:39]} Ra5 {[%emt 0:02:27]} 19. Ne2 {[%emt 0:01:46]} c5 {[%emt 0:00:20]} 20. dxc5 {[%emt 0:01:44]} Rxc5 {[%emt 0:00:51]} 21. Qd3 {[%emt 0:00:14]} e5 {[%emt 0:01:42]} 22. Rc2 Rb5 {[%emt 0:00:10]} 23. Rcc1 {[%emt 0:00:27]} Rc5 24. Rxc5 {[%emt 0:00:22]} Bxc5 {[%emt 0:00:11]} 25. Be3 {[%emt 0:00:21]} Bxe3 {[%emt 0:01:10]} 26. Qxe3 {[%emt 0:00:21]} Rd8 {[%emt 0:00:59]} 27. Rd2 {[%emt 0:01:35]} Rd7 {[%emt 0:01:16]} 28. Nc3 {[%emt 0:00:18]} Qd8 {[%emt 0:00:17]} 29. Rxd7 {[%emt 0:01:02]} Qxd7 {[%emt 0:00:01]} 30. Bf1 {[%emt 0:00:06]} Nc8 {[%emt 0:00:18]} 31. Qd3 {[%emt 0:00:05]} Qxd3 {[%emt 0:00:11]} 32. Bxd3 {[%emt 0:00:02]} Nd6 {[%emt 0:00:08]} 33. f3 {[%emt 0:00:06]} Kf8 {[%emt 0:00:05]} 34. Nb1 {[%emt 0:00:02]} Nd7 {[%emt 0:00:13]} 35. Nxa3 {[%emt 0:00:05]} Nc5 {[%emt 0:00:04]} 36. Be2 {[%emt 0:00:18]} Ke7 {[%emt 0:00:30]} 37. Nc4 {[%emt 0:00:02]} f6 {[%emt 0:00:47]} 38. Kf2 {[%emt 0:00:19]} Ne6 {[%emt 0:00:15]} 39. Nxd6 {[%emt 0:00:33]} Kxd6 {[%emt 0:00:01]} 40. a4 {[%emt 0:00:02]} Kc5 {[%emt 0:00:32]} 41. a5 {[%emt 0:00:16]} Nd4 {[%emt 0:00:25]} 42. a6 {[%emt 0:00:16]} Kb6 {[%emt 0:00:03]} 43. Bc4 {[%emt 0:00:03]} c5 {[%emt 0:00:27]} 44. f4 {[%emt 0:00:16]} Nc6 {[%emt 0:00:21]} 45. Ke3 {[%emt 0:00:33]} Nd4 {[%emt 0:00:14]} 46. Kd3 {[%emt 0:00:16]} Nf3 {[%emt 0:00:07]} 47. h4 {[%emt 0:00:14]} Ne1+ {[%emt 0:00:19]} 48. Ke2 {[%emt 0:00:32]} Nc2 {[%emt 0:00:02]} 49. fxe5 {[%emt 0:00:27]} Nd4+ {[%emt 0:00:19]} 50. Kd3 {[%emt 0:00:15]} fxe5 {[%emt 0:00:02]} 51. g4 {[%emt 0:00:17]} Nc6 {[%emt 0:00:07]} 52. h5 {[%emt 0:00:13]} Nb4+ {[%emt 0:00:10]} 53. Kc3 {[%emt 0:00:44]} Nxa6 {[%emt 0:00:20]} 54. Bxa6 {[%emt 0:00:22]} Kxa6 {[%emt 0:00:00]} 55. Kc4 {[%emt 0:00:01]} Kb6 {[%emt 0:00:01]} 56. Kd5 {[%emt 0:00:02]} Kb5 {[%emt 0:00:01]} 57. Kxe5 {[%emt 0:00:04]} Kb4 58. Kd5 {[%emt 0:00:20]} Kb5 {[%emt 0:00:16]} 59. e5 {[%emt 0:00:03]} Kb6 {[%emt 0:00:01]} 60. Kd6 {[%emt 0:00:02]} Kb5 {[%emt 0:00:07]} 61. e6 {[%emt 0:00:04]} 1-0